Cogmind - Beta 9.4 --- EXPLORER MODE // 2020.01.17 @ 13:50:51 Player: K.Ioz Result: Destroyed self with Mini Grenade Launcher Performance ------------- Evolutions (0) 0 Regions Visited (2) 400 Robots Destroyed (25) 125 Value Destroyed (455) 455 Prototype IDs (3) 60 Alien Tech Used (0) 0 Bonus (0) 0 TOTAL SCORE: 1040 Bonus ------- None Cogmind --------- Core Integrity 0/250 Matter 276/300 Energy 100/100 System Corruption 1% Temperature Cool (0) Movement Hovering (150) Ox1 Location -10/Mines Parts ------- > --- POWER (1) -------- (None) > --- PROPULSION (2) --- Combat Airjet > --- UTILITY (3) ------ High-capacity Storage Unit Visual Processing Unit > --- WEAPON (2) ------- Mini Grenade Launcher > --- INVENTORY (12) --- Light Ion Engine Improved Ion Engine Medium Storage Unit Structural Scanner Visual Processing Unit Sensor Array Targeting Computer Core Shielding Peak State ------------ > --- POWER ------------ Light Ion Engine > --- PROPULSION ------- Light Treads Combat Airjet > --- UTILITY ---------- Improved Heat Sink High-capacity Storage Unit Visual Processing Unit > --- WEAPON ----------- Mini Grenade Launcher > --- INVENTORY -------- Light Ion Engine Improved Ion Engine Medium Storage Unit Structural Scanner Visual Processing Unit Sensor Array Targeting Computer Core Shielding [Rating: 16] Favorites ----------- Power Ion Engine Engine Ion Engine Propulsion Light Treads Treads Light Treads Hover Unit Combat Airjet Utility Light Armor Plating Device Improved Heat Sink Storage High-capacity Storage Unit Processor Visual Processing Unit Protection Light Armor Plating Weapon Light Assault Rifle Energy Gun EM Pulse Gun Energy Cannon Beam Cannon Ballistic Gun Light Assault Rifle Launcher Mini Grenade Launcher Build | -11 -10 -10 ------- Run | Scr Mat Min Slots Evolved 1 | . 1 . Power . | . . . Propulsion . | . . . Utility 1 | . 1 . Weapon . | . . . Parts Attached 17 | 7 5 5 Power 3 | 1 1 1 Engine 3 | 1 1 1 Core . | . . . Reactor . | . . . Propulsion 3 | 2 . 1 Treads 2 | 2 . . Leg . | . . . Wheel . | . . . Hover 1 | . . 1 Flight . | . . . Utility 6 | 2 3 1 Device 1 | . 1 . Storage 2 | 1 1 . Processor 1 | . . 1 Hackware . | . . . Protection 2 | 1 1 . Artifact . | . . . Weapon 5 | 2 1 2 Energy Gun 2 | 1 . 1 Energy Cannon 1 | . 1 . Ballistic Gun 1 | 1 . . Ballistic Cannon . | . . . Launcher 1 | . . 1 Special Weapon . | . . . Impact Weapon . | . . . Slashing Weapon . | . . . Piercing Weapon . | . . . Special Melee Weapon . | . . . Unidentified Prototypes . | . . . Parts Lost 9 | . . 9 Power 2 | . . 2 Propulsion 2 | . . 2 Utility 2 | . . 2 Weapon 3 | . . 3 Highest Loss Streak 4 | . . 4 Average Slot Usage (%) 97 | . 100 90 Engine 11 | . 12 9 Treads 24 | . 25 21 Device 8 | . 7 12 Storage 12 | . 12 12 Processor 1 | . . 4 Protection 14 | . 16 7 Energy Gun 3 | . 4 2 Energy Cannon 7 | . 7 7 Ballistic Gun 11 | . 12 8 Naked Turns . | . . . Heaviest Build 45 | 17 45 45 Greatest Support 40 | 40 40 40 Greatest Overweight (x) 11 | . 1 11 Average Overweight (x) . | . . 1 Largest Inventory Capacity 12 | 8 12 12 Average Capacity 10 | 6 10 12 Most Carried 10 | 5 10 10 Average Carried 7 | 2 7 9 Final Capacity 12 | 8 12 12 Final Carried 10 | 5 10 8 Class Distribution -------------------- 100% | Hacker-Mutant Dominant Class ---------------- Hacker-Mutant | -10/Materials Hacker-Mutant | -10/Mines Resources | -11 -10 -10 ----------- Run | Scr Mat Min Matter Collected 427 | 188 158 81 Remotely . | . . . Salvage Created 625 | . 350 275 Parts 33 | . 26 7 Haulers Intercepted . | . . . Recyclers Shooed 1 | . 1 . Parts Field Recycled . | . . . Retrieved Matter . | . . . Parts Self-Destructed . | . . . Prevented . | . . . Kills | -11 -10 -10 ------- Run | Scr Mat Min Combat Hostiles Destroyed 22 | . 7 15 Guns 15 | . 6 9 Cannons 3 | . 1 2 AOE 4 | . . 4 Classes Destroyed 5 | . 3 2 Watcher 3 | . 3 . Swarmer 3 | . 1 2 Grunt 8 | . 6 2 Demolisher 1 | . . 1 Assembled 10 | . . 10 Best Kill Streak 5 | . 2 5 Combat Bots Only 5 | . 2 5 Max Kills in Single Turn 1 | . 1 1 Gunslinging . | . . . Exploded 1 | . . 1 Melee . | . . . Uniques/NPCs Destroyed . | . . . Combat | -11 -10 -10 -------- Run | Scr Mat Min Damage Taken 1010 | . 98 912 Core 257 | . 23 234 Absorbed by Shields . | . . . Core Remaining (%) 100 | 100 . . Volleys Fired 75 | . 26 49 Largest 2 | . 2 2 Hottest 80 | . 80 80 Shots Fired 129 | . 52 77 Gun 92 | . 38 54 Cannon 31 | . 14 17 Launcher 6 | . . 6 Special . | . . . Kinetic 54 | . 26 28 Thermal 31 | . 14 17 Explosive 6 | . . 6 Electromagnetic 38 | . 12 26 Robot Hit Streak 26 | . 26 20 Robot Miss Streak 2 | . 2 1 Penetration Max . | . . . Secondary Targets 2 | . . 2 Max Gunslinging Chain 1 | . . 1 Shots Hit Robots 106 | . 39 67 Core Hits 50 | . 20 30 Critical Hits . | . . . Critical Kills . | . . . Critical Parts Destroyed . | . . . Melee Attacks . | . . . Impact . | . . . Slashing . | . . . Piercing . | . . . Sneak Attacks . | . . . Combat Hostiles . | . . . Follow-up Attacks . | . . . Damage Inflicted 1519 | . 566 953 Guns 757 | . 295 462 Cannons 473 | . 211 262 Explosions 289 | . 60 229 Melee . | . . . Ramming . | . . . Kinetic 310 | . 130 180 Thermal 533 | . 271 262 Explosive 229 | . . 229 Electromagnetic 447 | . 165 282 Impact . | . . . Slashing . | . . . Piercing . | . . . Highest Corruption 1 | . . 1 Average Corruption 1 | . . 1 Corruption Purged . | . . . Overload Shots . | . . . Overflow Damage 50 | . 28 22 Projectiles 27 | . 17 10 Explosions 23 | . 11 12 Melee . | . . . Knockbacks . | . . . Impact . | . . . Kinetic . | . . . Secondary . | . . . Self-Inflicted Damage 52 | . . 52 Shots 3 | . . 3 Rammed . | . . . Targets Rammed . | . . . Kicked . | . . . Crushed . | . . . Highest Temperature 88 | . 88 66 Average Temperature 25 | . 29 20 Received Heat Transfer 295 | . 81 214 Siege Activations . | . . . Robots Corrupted . | . . . Combat Hostiles . | . . . Parts Fried . | . . . Impact Corruptions . | . . . Robots Melted . | . . . Combat Hostiles . | . . . Parts Melted 1 | . . 1 Heat Transferred 1099 | . 544 555 Parts Sabotaged . | . . . Parts Stolen . | . . . Parts Stripped . | . . . Power Chain Reactions 1 | . 1 . Missiles Intercepted . | . . . Alert | -11 -10 -10 ------- Run | Scr Mat Min Peak Influence 152 | . 152 92 Average Influence 25 | . 21 45 Maximum Alert Level . | . . . Low Security (%) 100 | 100 100 100 Level 1 . | . . . Level 2 . | . . . Level 3 . | . . . Level 4 . | . . . Level 5 . | . . . High Security . | . . . Max Security . | . . . Squads Dispatched . | . . . Investigation . | . . . Extermination . | . . . Reinforcement . | . . . Assault . | . . . Garrison . | . . . Intercept . | . . . Construction Impeded . | . . . Haulers Reinforced . | . . . Stealth | -11 -10 -10 --------- Run | Scr Mat Min Distress Signals 1 | . 1 . Communications Jammed . | . . . Distress Signals . | . . . Times Spotted 36 | . 13 23 Peak Tracking Total 7 | . 4 7 Tactical Retreats 7 | . 2 5 Traps | -11 -10 -10 ------- Run | Scr Mat Min Traps Triggered . | . . . Indirectly . | . . . Trap Hack Attempts . | . . . Triggered . | . . . Disarmed . | . . . Reprogrammed . | . . . Reused . | . . . Traps Extracted . | . . . Installed . | . . . Triggered . | . . . Machines | -11 -10 -10 ---------- Run | Scr Mat Min Machines Disabled . | . . . Max in Single Turn . | . . . Machines Sabotaged . | . . . Garrisons Compromised . | . . . Overloaded Fab Kills . | . . . Fab Network Shutdowns . | . . . Hacking | -11 -10 -10 --------- Run | Scr Mat Min Machines Accessed 8 | . 8 . Terminals 8 | . 8 . Fabricators . | . . . Repair Stations . | . . . Recycling Units . | . . . Scanalyzers . | . . . Garrison Access . | . . . Total Hacks 26 | . 26 . Successful 17 | . 17 . Failed 9 | . 9 . Catastrophic . | . . . Database Lockouts . | . . . Manual 11 | . 11 . Terminals 26 | . 26 . Fabricators . | . . . Repair Stations . | . . . Recycling Units . | . . . Scanalyzers . | . . . Garrison Access . | . . . Terminal Hacks 17 | . 17 . Robot Analysis 1 | . 1 . Prototype ID Bank 2 | . 2 . Terminal Index 1 | . 1 . Alert Level 1 | . 1 . Locate Traps 7 | . 7 . Dispatch Records 1 | . 1 . Investigation Status 1 | . 1 . Assault Status 1 | . 1 . Hauler Manifests 1 | . 1 . Zone Layout 1 | . 1 . Fabricator Hacks . | . . . Repair Station Hacks . | . . . Recycling Unit Hacks . | . . . Scanalyzer . | . . . Garrison Access Hacks . | . . . Unauthorized Hacks . | . . . Terminals . | . . . Fabricators . | . . . Repair Stations . | . . . Recycling Units . | . . . Scanalyzers . | . . . Garrison Access . | . . . Data Cores Recovered . | . . . Used . | . . . Hacking Detections 7 | . 7 . Full Trace Events . | . . . Feedback Events . | . . . Feedback Blocked . | . . . Robot Schematics Acquired . | . . . Robots Built . | . . . Matter . | . . . Time . | . . . Total Robot Build Rating . | . . . Part Schematics Acquired . | . . . Parts Built . | . . . Matter . | . . . Time . | . . . Total Part Build Rating . | . . . Parts Repaired . | . . . Time . | . . . Parts Recycled . | . . . Recycled Matter . | . . . Retrieved Matter . | . . . Retrieved Components . | . . . Parts Scanalyzed . | . . . Part Schematics Acquired . | . . . Parts Damaged . | . . . Bothacking | -11 -10 -10 ------------ Run | Scr Mat Min Used RIF Installer . | . . . Robots Hacked . | . . . Non-combat . | . . . Combat . | . . . Robot Hacks Applied . | . . . Relay Couplers Released . | . . . Robots Rewired . | . . . Allies Hacked . | . . . Hacks Repelled . | . . . Allies | -11 -10 -10 -------- Run | Scr Mat Min Total Allies . | . . . Largest Group . | . . . Highest-Rated Group . | . . . Highest-Rated Ally . | . . . Total Orders . | . . . Ally Attacks . | . . . Total Damage . | . . . Kills . | . . . Allies Corrupted . | . . . Allies Melted . | . . . Intel | -11 -10 -10 ------- Run | Scr Mat Min Robot Analysis Total 1 | . 1 . Derelict Logs Recovered . | . . . Drone Launches . | . . . Drone Recoveries . | . . . Exploration | -11 -10 -10 ------------- Run | Scr Mat Min Turns Passed 1792 | 161 1184 447 Spaces Moved 871 | 108 600 163 Core 25 | 24 . 1 Treads 843 | 84 600 159 Legs . | . . . Wheels . | . . . Hover 3 | . . 3 Flight . | . . . Fastest Speed 50 | 50 160 150 Average Speed 169 | 135 172 182 Slowest Speed 600 | 160 180 600 Overloaded Moves . | . . . Propulsion Burnouts . | . . . Robots Hopped . | . . . Cave-ins Triggered . | . . . Exploration Rate (%) 46 | 7 95 36 Regions Visited 2 Branch Regions 1 Pre-discovered Areas . | . . . Known Exits Taken 2 | 1 1 . Unknown Exits Taken . | . . . Scrap Searched . | . . . Spaces Dug . | . . . Terrain Destroyed 35 | . 6 29 Melee . | . . . Projectile . | . . . AOE 35 | . 6 29 Actions | -11 -10 -10 --------- Run | Scr Mat Min Total 1066 | 119 705 242 Wait 85 | . 60 25 Move 869 | 107 599 163 Hop . | . . . Pick Up 14 | 5 9 . Fast Attach 11 | 7 1 3 Attach 4 | . 2 2 Detach 1 | . 1 . Swap 2 | . 2 . Drop 5 | . 5 . Fire 75 | . 26 49 Melee . | . . . Ram . | . . . Kick . | . . . Crush . | . . . Escape Stasis . | . . . Rewire . | . . . Trap . | . . . Miscellaneous . | . . . Route ------- -11/Scrapyard -10/Materials (discovered 4 exits: *Mat x3 / *Min) -10/Mines (discovered 1 exit: *Mat) History --------- Turn | Location | Event 14 | -11/Scrapyard | Identified exit to Materials 14 | -11/Scrapyard | Discovered exit to Materials (range 15) 162 | -11/Scrapyard | Entered Materials 162 | -10/Materials | Evolved 1 slot: Utility x1 316 | -10/Materials | Build established: Hacker-Mutant 710 | -10/Materials | Identified exit to Materials 710 | -10/Materials | Discovered exit to Materials (range 14) 989 | -10/Materials | Discovered exit to Materials (range 16) 1162 | -10/Materials | Identified exit to Mines 1162 | -10/Materials | Discovered exit to Mines (range 16) 1240 | -10/Materials | Discovered exit to Materials (range 9) 1346 | -10/Materials | Entered Mines 1373 | -10/Mines | Discovered exit to Materials (range 11) 1586 | -10/Mines | Assembled infested the area 1663 | -10/Mines | Core integrity fell below 50% 1692 | -10/Mines | Core integrity fell below 20% 1730 | -10/Mines | Lost 4 parts (1p1n2w) 1793 | -10/Mines | Destroyed self with Mini Grenade Launcher Last Messages --------------- 01758_ The unstable cave ceiling collapses. 01759_ K-01 Serf collects debris. 01764_ Acquired Cmb. Airjet. 01766_ K-01 Serf collects debris. 01775_ Lgt. Ion Engine destroyed. 01775_ Destroyed Lgt. Ion Engine. 01775_ K-01 Serf collects debris. 01780_ Lgt. Treads destroyed. 01780_ System corrupted by crushing effect (+1). 01780_ Knocked back. 01782_ The unstable cave ceiling collapses. 01787_ as-98584 destroyed. 01787_ Knocked back. 01788_ K-01 Serf collects debris. 01792_ Acquired 4 matter. 01792_ K-01 Serf collects debris. 01793_ Destroyed Asb. Hover Unit. 01793_ as-24903 destroyed. 01793_ Imp. Heat Sink destroyed. 01793_ Destroyed Imp. Heat Sink. Map ----- +----------------------------------------------------+ | | | ??????????????????????????????????????????? | | ??????????????????????????????????????????? | | ??????????????????????????????????????????? | | ??????????????????????????????????????????? | | ??????????????????????????????????????????? | | ?#########????????????????????????????????? | | ?# ###??????????????????????????????? | | ?# """ #??????????????????????????????? | | ?# """ # #??????????????????????????????? | | ?# """ # #??????????????????????????????? | | ?# # #??????????????????????????????? | | ?# # #??????????????????????????????? | | ?### ##### ##?????????????????????????????? | | ???# #?## ##????????????????????????????? | | ???# #?# # ####?????####?????????????????? | | ???# ### ?????## #????????????#????? | | ???# # # # ##????# #??????????? #????? | | ???### ## #????# #???##???##" #????? | | ?????# ## #???## #??# ##?# ##???? | | ?????# ## # ###???# ### ## #???? | | ?????# # # ## ##???# # ##??? | | ?????# # ### ###?## #??? | | ????## # # ####= % #??? | | ???## ### # ## # % #??? | | ???# % % !@ = #??? | | ???# % % % %% k = % #???? | | ???# r ## ## ### ##???? | | ??## ### ### ###### ## # #????? | | ?## ##### # ##???## # ##??#????? | | ?# #########?????#########??????????? | | ?# ###????????????????????????????? | | ?# ##???????????????????????????? | | ?## #???????????????????????????? | | ??## ##??????????????????????????? | | ???### ##?????????????????????????? | | ?????## ## %=##????????????????????????? | | ??????####### %*##???????????????????????? | | ???????????## #???????????????????????? | | ???????????# #???????????????????????? | | ???????????# ##??##??????????????????? | | ???????????# ## ##?????????????????? | | ??????????## #?????????????????? | | ??????????# ##????????????????? | | ?????????## #????????????????? | | ??????#### ## #????????????????? | | ?????## < ##?# #???????????????? | | ?????# #####???# #???????????????? | | ????## ##????????# #???????????????? | | ????# ##?????????? #???????????????? | +----------------------------------------------------+ Best States ------------- Heat Dissipation 39 Energy Generation 10 Energy Capacity 250 Matter Stores 300 Matter Capacity 300 Sight Range 18 Terrain Scan Density 10 Armor Coverage 150 Resistance: KI 35 Resistance: TH 35 Resistance: EX 35 Resistance: EM 35 Resistance: I 35 Resistance: S 35 Resistance: P 35 Weapon Shielding 33 Evasion (%) 50 Recoil Reduction 2 Offensive Hacking 20 Item Schematics ----------------- None Robot Schematics ------------------ None Fabricated ------------ Nothing Alien Tech Used ----------------- None Achievements -------------- None Challenges ------------ None Game ------ Seed HugeZioniteInverter Manual? 0 Play Time 00:19:27 Cumulative 72.9 hours Start 2020.01.17 @ 13:32:00 End 2020.01.17 @ 13:50:51 Sessions 1 Manual Loads 0 Difficulty Explorer Special Mode None Game No. 61 Rogue 51 Adventurer 0 Explorer 10 Win Type - Total 1 Types 1/0/0/0/0/0/0 Lore% 41 Gallery% 44 Achievement% 39 Wizard Run 0 Options --------- ASCII 0 Keyboard 1 Movement Vi Keybinds 0 Fullscreen 1 Font 18/X11Bold Map View 76x50 Tactical HUD 1 Map Filters NONE Filters LOW_CONTRAST(47,30,31)|SHIFT_HUE(1) Steam 1 RUN: d130156e-d2ab-4c0e-a8dc-5c85b392205c